bitfinex-derivatives/quotes_SOLF0:USTF0_20250614
["timestamp","ask_amount","ask_price","bid_price","bid_amount"]
[1749930975403,7.01536631,143.57,143.54,7.00937851]
[1749930981013,6.9631,143.56,143.54,0.04537851]
[1749930981307,0.05256631,143.57,143.54,0.04537851]
[1749930981808,7.01536631,143.57,143.54,0.04537851]
[1749930983005,7.01536631,143.57,143.54,7.00927851]
[1749930984310,0.05256631,143.57,143.55,6.9635]
[1749930985509,0.05256631,143.57,143.54,7.00917851]
[1749930987306,7.01526631,143.57,143.54,7.00917851]
[1749930987506,7.01526631,143.57,143.54,0.04537851]
[1749930988515,6.9631,143.56,143.54,0.04537851]
[1749930988715,0.05256631,143.57,143.54,0.04537851]
[1749930989215,3.03175728,143.56,143.54,0.04537851]
[1749930989605,6.9635,143.55,143.54,0.04537851]
[1749930990111,9.99505728,143.56,143.54,0.04537851]
[1749930990516,3.03146308,143.55,143.54,0.04537851]
[1749930990722,9.99496308,143.55,143.54,0.04537851]
[1749930990924,6.9635,143.55,143.54,0.04537851]
[1749930991519,6.9633,143.56,143.54,0.04537851]
[1749930991715,0.05256631,143.57,143.54,0.04537851]
[1749930992317,0.05256631,143.57,143.55,6.9632]
[1749930993322,0.05256631,143.57,143.54,7.00927851]
[1749930993823,7.01516631,143.57,143.54,7.00927851]
[1749930996425,0.05256631,143.57,143.54,7.00927851]
[1749930996724,0.05256631,143.57,143.54,19.98910521]
[1749930996925,0.05256631,143.57,143.54,7.00927851]
[1749930997117,0.05256631,143.57,143.54,19.98910521]
[1749930997524,7.01516631,143.57,143.54,19.98910521]
[1749930999428,0.05256631,143.57,143.54,19.98910521]
[1749931001830,7.01516631,143.57,143.54,19.98910521]
[1749931002430,0.05256631,143.57,143.54,19.98910521]
[1749931004227,0.05256631,143.57,143.55,6.9635]
[1749931004637,0.05256631,143.57,143.54,13.02520521]
[1749931004933,0.05256631,143.57,143.54,19.98890521]
[1749931006636,0.05256631,143.57,143.56,6.963]
[1749931007033,0.05256631,143.57,143.56,19.9428267]
[1749931007329,0.05256631,143.57,143.56,6.963]
[1749931007732,0.05256631,143.57,143.56,19.9428267]
[1749931009138,0.05256631,143.57,143.56,55.2628267]
[1749931010936,0.05256631,143.57,143.56,48.2998267]
[1749931011136,0.05256631,143.57,143.56,35.32]
[1749931014539,0.05256631,143.57,143.56,42.283]
[1749931015439,0.05256631,143.57,143.56,35.32]
[1749931016235,0.05256631,143.57,143.56,42.283]
[1749931017334,0.05256631,143.57,143.56,45.31292315]
[1749931017535,0.05256631,143.57,143.56,42.283]
[1749931017730,0.05256631,143.57,143.56,45.31292315]
[1749931019346,0.05256631,143.57,143.56,42.283]
[1749931036253,0.05256631,143.57,143.56,35.32]
[1749931036657,0.05256631,143.57,143.54,17.56430521]
[1749931036658,0.05256631,143.57,143.54,13.02520521]
[1749931036957,0.05256631,143.57,143.54,0.04537851]
[1749931037255,4.78680373,143.57,143.54,0.04537851]
[1749931037555,6.963,143.56,143.54,0.04537851]
[1749931037752,4.78680373,143.57,143.54,0.04537851]
[1749931038251,6.963,143.56,143.54,0.04537851]
[1749931038453,4.78680373,143.57,143.54,0.04537851]
[1749931038851,6.9635,143.55,143.54,0.04537851]
[1749931039152,0.05256631,143.57,143.54,0.04537851]
[1749931039852,0.05256631,143.57,143.55,6.9632]
[1749931041257,0.05256631,143.57,143.55,9.99353758]
[1749931041859,0.05256631,143.57,143.54,10.03961609]
[1749931043353,7.01516631,143.57,143.54,10.03961609]
[1749931045161,0.05256631,143.57,143.54,23.01944279]
[1749931047757,0.05256631,143.57,143.54,10.03961609]
[1749931048059,0.05256631,143.57,143.55,3.03033758]
[1749931049874,0.05256631,143.57,143.54,10.03961609]
[1749931050962,0.05256631,143.57,143.54,23.01944279]
[1749931051167,0.05256631,143.57,143.55,6.9633]
[1749931051466,0.05256631,143.57,143.55,9.99363758]
[1749931052470,0.05256631,143.57,143.54,13.02520521]
[1749931052471,0.05256631,143.57,143.54,0.04537851]
[1749931052663,3.08290389,143.57,143.54,0.04537851]
[1749931052967,6.9635,143.55,143.54,0.04537851]
[1749931060667,6.9633,143.56,143.54,0.04537851]
[1749931060863,0.05256631,143.57,143.54,0.04537851]
[1749931061577,7.01556631,143.57,143.54,7.00937851]
[1749931061768,7.01556631,143.57,143.54,10.03971609]
[1749931061962,3.08290389,143.57,143.54,0.04537851]
[1749931062170,3.03033758,143.55,143.48,48.2598267]
[1749931062366,6.9664,143.49,143.48,35.28]
[1749931062769,3.03033758,143.5,143.46,12.9798267]
[1749931062969,3.03033758,143.49,143.45,35.28]
[1749931063166,3.03033758,143.48,143.45,35.28]
[1749931063366,3.08278417,143.48,143.46,0.04600247]
[1749931063970,6.9677,143.47,143.46,0.04600247]
[1749931064164,0.05244659,143.48,143.46,0.04600247]
[1749931065980,0.05244659,143.48,143.47,4.74145195]
[1749931066274,6.9653,143.52,143.49,6.9662]
[1749931066477,6.9653,143.52,143.49,42.2662]
[1749931067174,0.05217953,143.52,143.5,6.9659]
[1749931069171,0.05217953,143.52,143.49,47.05255789]
[1749931071771,0.05217953,143.52,143.5,6.9659]
[1749931074473,0.05217953,143.52,143.51,6.9655]
[1749931074674,0.05217953,143.52,143.49,0.04490594]
[1749931075179,6.966,143.5,143.49,0.04490594]
[1749931076982,6.9657,143.51,143.49,0.04490594]
[1749931082677,7.01727953,143.52,143.49,0.04490594]
[1749931082873,0.05217953,143.52,143.49,0.04490594]
[1749931083182,0.05217953,143.52,143.5,40.04145195]
[1749931083575,0.05217953,143.52,143.51,6.9655]
[1749931084686,6.9631,143.56,143.52,6.9645]
[1749931084987,2.2465,143.59,143.5,44.67285195]
[1749931085188,6.963,143.57,143.53,6.9642]
[1749931085386,2.2465,143.59,143.53,6.9642]
[1749931085586,2.2465,143.59,143.5,44.67285195]
[1749931085787,6.9633,143.56,143.55,0.05008702]
[1749931087288,7.01438692,143.57,143.55,0.05008702]
[1749931087680,0.05168692,143.57,143.55,0.05008702]
[1749931087888,6.963,143.56,143.55,0.05008702]
[1749931089081,0.05168692,143.57,143.55,0.05008702]
[1749931089581,6.963,143.56,143.55,0.05008702]
[1749931113792,6.963,143.56,143.48,2.4226]
[1749931113793,6.9659,143.5,143.48,35.26]
[1749931114805,0.05138136,143.5,143.48,35.30743385]
[1749931115297,0.05138136,143.5,143.48,42.27413385]
[1749931118400,7.01748136,143.5,143.48,35.30743385]
[1749931121311,0.05138136,143.5,143.48,35.30743385]
[1749931122012,7.01738136,143.5,143.48,35.30743385]
[1749931124115,0.05138136,143.5,143.48,42.27433385]
[1749931127914,0.05138136,143.5,143.49,6.9664]
[1749931133524,0.05138136,143.5,143.48,45.30715198]
[1749931136424,3.03301813,143.53,143.48,38.34045198]
[1749931136631,6.9647,143.53,143.49,3.03301813]
[1749931137227,6.9647,143.53,143.5,6.9658]
[1749931137427,6.9652,143.52,143.49,3.03301813]
[1749931137828,6.9652,143.52,143.49,9.99921813]
[1749931145834,3.08375258,143.53,143.48,35.30743385]
[1749931147130,6.9652,143.52,143.48,35.30743385]
[1749931149637,6.9652,143.52,143.48,42.27413385]
[1749931149823,0.05064049,143.53,143.5,3.03311209]
[1749931150030,0.05064049,143.53,143.51,3.03311209]
[1749931150229,0.05064049,143.53,143.51,10.04410127]
[1749931151232,0.05064049,143.53,143.52,6.965]
[1749931158037,0.05064049,143.53,143.51,10.04297664]
[1749931158433,0.05064049,143.53,143.51,0.04578918]
[1749931158839,3.03198746,143.52,143.51,0.04578918]
[1749931159041,9.99698746,143.52,143.51,0.04578918]
[1749931160046,6.965,143.52,143.51,0.04578918]
[1749931160346,9.99698746,143.52,143.51,0.04578918]
[1749931163849,6.965,143.52,143.51,0.04578918]
[1749931166352,7.01534049,143.53,143.51,0.04578918]
[1749931168454,6.965,143.52,143.51,0.04578918]
[1749931173151,3.08262795,143.53,143.51,0.04578918]
[1749931174852,6.965,143.52,143.51,0.04578918]
[1749931183656,9.99698746,143.52,143.51,0.04578918]
[1749931187455,6.965,143.52,143.51,0.04578918]
[1749931199275,3.08383102,143.53,143.47,12.9798267]
[1749931199463,45.39344214,143.52,143.43,15.3525267]
[1749931199669,3.03319053,143.5,143.46,12.9798267]
[1749931199869,6.9664,143.5,143.46,19.9476267]
[1749931200069,38.25319053,143.52,143.47,3.03319053]
[1749931200374,0.0521823,143.51,143.48,0.04784685]
[1749931200969,6.9659,143.5,143.48,0.04784685]
[1749931201373,0.0521823,143.51,143.48,0.04784685]
[1749931201780,6.9659,143.5,143.48,0.04784685]
[1749931202682,7.0177823,143.51,143.48,0.04784685]
[1749931203574,0.0521823,143.51,143.48,0.04784685]
[1749931203973,7.0178823,143.51,143.48,0.04784685]
[1749931204178,0.0521823,143.51,143.49,3.03319053]
[1749931204476,0.0521823,143.51,143.5,3.03319053]
[1749931204683,0.0521823,143.51,143.5,38.21319053]
[1749931204979,0.0521823,143.51,143.5,35.18]
[1749931208282,7.0175823,143.51,143.5,35.18]
[1749931210082,6.9664,143.49,143.48,13.02767355]
[1749931210282,6.9664,143.49,143.48,0.04784685]
[1749931210984,6.9661,143.5,143.48,0.04784685]
[1749931215589,7.0178823,143.51,143.48,7.01474685]
[1749931215882,0.0521823,143.51,143.48,13.02767355]
[1749931216082,0.0521823,143.51,143.49,12.9798267]
[1749931216976,0.0521823,143.51,143.48,0.04784685]
[1749931217678,6.9659,143.5,143.48,0.04784685]
[1749931221182,6.9659,143.5,143.45,12.9798267]
[1749931221183,4.73811039,143.5,143.45,12.9798267]
[1749931221481,4.73811039,143.5,143.43,37.6067]
[1749931221482,4.73811039,143.48,143.43,35.18]
[1749931221684,6.9686,143.45,143.43,35.18]
[1749931221892,4.73811039,143.48,143.43,35.18]
[1749931222089,6.9688,143.44,143.43,35.18]
[1749931223485,6.9688,143.44,143.42,0.04987524]
[1749931223680,6.9693,143.43,143.42,0.04987524]
[1749931230100,6.9711,143.4,143.37,35.2]
[1749931230397,6.9711,143.4,143.34,50.5512267]
[1749931230398,4.73811039,143.4,143.34,50.5512267]
[1749931230598,6.972,143.38,143.34,37.5714]
[1749931230902,4.73811039,143.4,143.34,50.5512267]
[1749931231092,0.04683052,143.38,143.36,0.04609171]
[1749931232690,6.9699,143.42,143.36,4.7842021]
[1749931232896,6.9699,143.42,143.36,4.73811039]
[1749931233297,6.9695,143.43,143.36,4.73811039]
[1749931233494,6.9695,143.43,143.36,17.71793709]
[1749931233691,0.04788232,143.41,143.4,6.9707]
[1749931233898,0.04788232,143.41,143.4,42.1507]
[1749931235302,0.04788232,143.41,143.4,35.18]
[1749931238099,0.04788232,143.41,143.4,42.1508]
[1749931239608,7.14701039,143.47,143.41,6.9701]
[1749931239906,44.56451039,143.48,143.4,35.18]
[1749931240101,44.56451039,143.48,143.41,6.97]
[1749931240500,6.9686,143.45,143.43,0.05239426]
[1749931245513,6.9688,143.44,143.43,0.05239426]
[1749931246612,6.9686,143.45,143.43,0.05239426]
[1749931249320,7.01299198,143.46,143.43,0.05239426]
[1749931250210,6.9685,143.45,143.43,0.05239426]
[1749931254515,7.01309198,143.46,143.43,0.05239426]
[1749931255322,11.70691039,143.44,143.43,0.05239426]
[1749931255620,0.04499198,143.46,143.43,0.05239426]
[1749931256115,6.9687,143.45,143.43,0.05239426]
[1749931257121,6.9688,143.44,143.43,0.05239426]
[1749931259516,6.9684,143.45,143.43,0.05239426]
[1749931261523,7.01299198,143.46,143.43,0.05239426]
[1749931264722,0.04499198,143.46,143.43,0.05239426]
[1749931264921,0.04499198,143.46,143.44,35.48]
[1749931265325,6.9665,143.49,143.46,6.9678]
[1749931265926,2.3133,143.52,143.47,6.9674]
[1749931266323,0.04928404,143.51,143.48,0.05216519]
[1749931267126,0.04928404,143.51,143.48,7.01896519]
[1749931267326,0.04928404,143.51,143.48,35.53216519]
[1749931267927,0.04928404,143.51,143.48,42.49886519]
[1749931271632,7.01478404,143.51,143.48,35.53216519]
[1749931271934,0.04928404,143.51,143.48,35.53216519]
[1749931272134,6.9664,143.49,143.48,35.53216519]
[1749931272329,6.9664,143.49,143.48,0.05216519]
[1749931272628,6.9679,143.46,143.45,35.48]
[1749931273032,4.73811039,143.47,143.42,35.48]
[1749931273526,4.73811039,143.45,143.42,35.48]
[1749931273732,6.9688,143.44,143.42,35.52773718]
[1749931274528,6.9693,143.43,143.42,35.52773718]
[1749931275327,6.969,143.44,143.42,35.52773718]
[1749931275528,0.04563673,143.45,143.42,35.52773718]
[1749931275936,6.9689,143.44,143.42,35.52773718]
[1749931283939,6.9693,143.43,143.42,35.52773718]
[1749931284740,6.969,143.44,143.42,35.52773718]
[1749931287749,7.01423673,143.45,143.42,35.52773718]
[1749931288245,0.04563673,143.45,143.43,6.9691]
[1749931289645,0.04563673,143.45,143.44,6.9688]
[1749931291152,0.04563673,143.45,143.43,6.9691]
[1749931294548,0.04563673,143.45,143.44,6.9688]
[1749931296359,0.04563673,143.45,143.43,6.9691]
[1749931299754,0.04563673,143.45,143.44,6.9688]
[1749931300454,2.207,143.53,143.47,6.9672]
[1749931300657,2.207,143.53,143.48,35.24]
[1749931301556,0.0454698,143.52,143.49,0.04668457]
[1749931301759,6.9663,143.5,143.49,0.04668457]
[1749931305866,11.70441039,143.5,143.49,0.04668457]
[1749931310461,6.9663,143.5,143.49,0.04668457]
[1749931317074,6.9679,143.46,143.45,35.22]
[1749931320479,0.04833085,143.47,143.45,35.22]
[1749931320678,35.24,143.55,143.48,6.9669]
[1749931320874,6.9655,143.51,143.49,35.24]
[1749931321068,4.73807103,143.56,143.49,35.24]
[1749931321270,6.9644,143.54,143.5,6.9658]
[1749931321575,39.97807103,143.58,143.5,4.73807103]
[1749931321778,0.04823526,143.55,143.53,0.04948099]
[1749931321976,0.04823526,143.55,143.53,35.28948099]
[1749931322776,0.04823526,143.55,143.53,42.25378099]
[1749931323383,0.04823526,143.55,143.53,44.57228099]
[1749931324285,39.97807103,143.61,143.54,6.964]
[1749931324481,6.9624,143.58,143.54,6.964]
[1749931324685,4.73807103,143.61,143.53,44.5228]
[1749931325285,0.04977684,143.58,143.56,0.04446741]
[1749931325681,6.9629,143.57,143.56,0.04446741]
[1749931327372,11.70097103,143.57,143.56,0.04446741]
[1749931328485,6.9629,143.57,143.56,0.04446741]
[1749931331588,6.9629,143.57,143.56,6.741e-05]
[1749931331789,6.964,143.54,143.53,35.18]
[1749931332089,4.73807103,143.55,143.5,35.18]
[1749931332481,4.73807103,143.53,143.5,35.18]
[1749931332889,4.79006022,143.53,143.5,35.23326335]
[1749931333691,6.9654,143.51,143.5,35.23326335]
[1749931335491,6.9653,143.52,143.5,35.23326335]
[1749931335792,0.05198919,143.53,143.5,35.23326335]
[1749931337295,6.9654,143.51,143.5,35.23326335]
[1749931338191,0.05198919,143.53,143.5,35.23326335]
[1749931339698,6.9653,143.52,143.5,35.23326335]
[1749931339997,0.05198919,143.53,143.5,35.23326335]
[1749931340298,6.9654,143.51,143.5,35.23326335]
[1749931349697,6.9652,143.52,143.5,35.23326335]
[1749931349901,0.05198919,143.53,143.5,35.23326335]
[1749931349902,0.05198919,143.53,143.5,39.97133438]
[1749931350202,39.91807103,143.59,143.51,6.9651]
[1749931350203,6.9642,143.54,143.51,6.9651]
[1749931350395,4.73807103,143.57,143.5,35.18]
[1749931350796,6.9643,143.54,143.51,6.9651]
[1749931351003,7.01233568,143.54,143.51,7.01711447]
[1749931351203,7.01233568,143.54,143.51,0.05201447]
[1749931351702,0.04803568,143.54,143.52,6.9648]
[1749931353403,0.04803568,143.54,143.51,0.05201447]
[1749931353897,6.9649,143.53,143.51,0.05201447]
[1749931354097,0.04803568,143.54,143.51,0.05201447]
[1749931354699,6.9648,143.53,143.51,0.05201447]
[1749931357206,0.04803568,143.54,143.51,0.05201447]
[1749931357598,7.01203568,143.54,143.51,7.01711447]
[1749931358105,0.04803568,143.54,143.51,0.05201447]
[1749931358907,0.04803568,143.54,143.52,6.9647]
[1749931360105,0.04803568,143.54,143.51,7.01721447]
[1749931360305,7.01213568,143.54,143.51,7.01721447]
[1749931360507,0.04803568,143.54,143.51,0.05201447]
[1749931361110,0.04803568,143.54,143.52,6.9649]
[1749931362204,0.04803568,143.54,143.53,6.9645]
[1749931367011,6.98257103,143.6,143.55,6.9635]
[1749931367215,2.2445,143.6,143.55,6.9635]
[1749931367617,6.9621,143.58,143.55,6.9635]
[1749931367816,2.2445,143.6,143.55,6.9635]
[1749931368119,0.05056014,143.59,143.56,0.04836018]
[1749931368423,7.01256014,143.59,143.56,0.04836018]
[1749931368625,0.05056014,143.59,143.56,0.04836018]
[1749931369218,0.05056014,143.59,143.57,6.9622]
[1749931369823,0.05056014,143.59,143.58,42.1221]
[1749931370320,4.73807103,143.66,143.58,35.16]
[1749931370515,6.9595,143.64,143.59,2.2806]
[1749931371018,6.9606,143.62,143.59,2.2806]
[1749931371325,7.01345085,143.62,143.59,2.33379254]
[1749931371615,6.9606,143.61,143.59,0.05319254]
[1749931372119,6.9611,143.6,143.59,0.05319254]
[1749931374329,6.9608,143.61,143.59,0.05319254]
[1749931374935,7.01315085,143.62,143.59,0.05319254]
[1749931375134,7.01315085,143.62,143.59,7.01449254]
[1749931375337,7.01315085,143.62,143.59,0.05319254]
[1749931375634,7.01315085,143.62,143.59,7.01449254]
[1749931376226,0.05285085,143.62,143.6,6.961]
[1749931377338,0.05285085,143.62,143.61,6.9606]
[1749931378337,0.05285085,143.62,143.59,0.05319254]
[1749931379033,0.05285085,143.62,143.6,6.961]
[1749931379739,0.05285085,143.62,143.59,0.05319254]
[1749931380139,7.01325085,143.62,143.59,0.05319254]
[1749931380528,0.05285085,143.62,143.59,0.05319254]
[1749931380932,6.9606,143.61,143.59,0.05319254]
[1749931382632,6.9611,143.6,143.59,0.05319254]
[1749931384142,6.9607,143.61,143.59,0.05319254]
[1749931384744,6.9611,143.6,143.59,0.05319254]
[1749931385739,0.05285085,143.62,143.59,0.05319254]
[1749931386140,0.05285085,143.62,143.61,6.9606]
[1749931387641,44.46837103,143.68,143.61,6.9606]
[1749931387841,44.46837103,143.68,143.62,35.12]
[1749931388043,6.9589,143.65,143.62,42.0801]
[1749931388234,2.3129,143.68,143.62,35.12]
[1749931388439,6.9574,143.68,143.65,6.9586]
[1749931388749,0.04576931,143.68,143.65,0.04844739]
[1749931389042,6.9579,143.67,143.65,0.04844739]
[1749931389438,7.00336931,143.68,143.65,0.04844739]
[1749931390442,6.9577,143.67,143.65,0.04844739]
[1749931391249,7.00316931,143.68,143.65,0.04844739]
[1749931392348,6.9577,143.67,143.65,0.04844739]
[1749931392941,7.00316931,143.68,143.65,0.04844739]
[1749931393444,6.958,143.67,143.65,0.04844739]
[1749931394846,7.00306931,143.68,143.65,0.04844739]
[1749931395049,0.04576931,143.68,143.65,0.04844739]
[1749931395552,6.9577,143.67,143.65,0.04844739]
[1749931395853,0.04576931,143.68,143.65,0.04844739]
[1749931396352,6.9577,143.67,143.65,0.04844739]
[1749931397852,6.9577,143.67,143.66,35.12]
[1749931400457,7.00316931,143.68,143.66,35.12]
[1749931401558,0.04576931,143.68,143.67,6.9577]
[1749931402244,0.04576931,143.68,143.66,42.0779]
[1749931403250,0.04576931,143.68,143.67,6.9577]
[1749931405756,0.04576931,143.68,143.66,42.0779]
[1749931406461,0.04576931,143.68,143.67,6.9577]
[1749931406656,0.04576931,143.68,143.66,35.12]
[1749931407058,7.00296931,143.68,143.66,35.12]
[1749931407366,0.04576931,143.68,143.66,35.12]
[1749931408865,0.04576931,143.68,143.66,42.0779]
[1749931409860,0.04576931,143.68,143.67,6.9577]
[1749931410266,4.73807103,143.73,143.66,35.12]
[1749931410658,6.9555,143.72,143.69,6.9565]
[1749931410855,4.73807103,143.73,143.66,35.12]
[1749931411061,6.9574,143.68,143.66,35.12]
[1749931411261,4.73807103,143.71,143.66,35.16846151]
[1749931411860,6.9573,143.68,143.66,35.16846151]
[1749931412467,6.9577,143.67,143.66,35.16846151]
[1749931412665,6.9577,143.67,143.66,0.04846151]
[1749931414972,4.72964561,143.69,143.66,0.04846151]
[1749931416066,4.72964561,143.67,143.66,0.04846151]
[1749931416364,4.72964561,143.67,143.63,35.12]
[1749931416570,4.72964561,143.65,143.63,35.12]
[1749931416871,4.72964561,143.65,143.59,35.12]
[1749931417071,4.72964561,143.63,143.59,35.12]
[1749931417272,0.04767018,143.62,143.6,0.04423199]
[1749931423668,0.04767018,143.62,143.61,11.69024561]
[1749931423864,6.9174,143.68,143.61,4.72964561]
[1749931424272,13.8749,143.68,143.64,6.9589]
[1749931424472,13.8749,143.68,143.64,42.1989]
[1749931424869,13.8749,143.68,143.65,0.0440648]
[1749931425676,6.9579,143.67,143.65,0.0440648]
[1749931426178,2.3461,143.68,143.65,0.0440648]
[1749931426474,6.9582,143.66,143.65,0.0440648]
[1749931427070,6.9587,143.65,143.59,4.72964561]
[1749931427271,4.72964561,143.63,143.61,35.24]
[1749931427478,4.72964561,143.63,143.59,35.24]
[1749931427677,6.9615,143.6,143.59,35.24]
[1749931429579,6.9616,143.59,143.58,0.04773595]
[1749931431681,0.04833421,143.61,143.58,0.04773595]
[1749931432178,0.04833421,143.61,143.59,6.9613]
[1749931432372,0.04833421,143.61,143.6,35.24]
[1749931438073,0.04833421,143.61,143.6,42.2011]
[1749931438279,2.4269,143.66,143.6,35.24]
[1749931438676,6.9593,143.64,143.61,6.9603]
[1749931439368,6.9596,143.63,143.61,7.00493989]
[1749931439683,6.9596,143.63,143.61,0.04463989]
[1749931440484,4.72964561,143.65,143.61,0.04463989]
[1749931441880,6.9598,143.63,143.61,0.04463989]
[1749931442381,6.9598,143.63,143.61,7.00513989]
[1749931442677,6.9598,143.63,143.61,0.04463989]
[1749931443783,6.9601,143.62,143.61,0.04463989]
[1749931445982,6.9599,143.63,143.61,0.04463989]
[1749931446784,6.9601,143.62,143.61,0.04463989]
[1749931447371,6.9599,143.63,143.61,0.04463989]
[1749931447578,7.15654561,143.66,143.61,0.04463989]
[1749931447779,6.9601,143.62,143.61,0.04463989]
[1749931448483,6.9598,143.63,143.61,0.04463989]
[1749931448684,4.72964561,143.64,143.61,0.04463989]
[1749931448889,4.72964561,143.62,143.61,0.04463989]
[1749931449089,11.68974561,143.62,143.61,0.04463989]
[1749931449783,6.9621,143.58,143.57,35.12]
[1749931449986,4.72964561,143.62,143.57,35.12]
[1749931450482,6.9618,143.59,143.57,35.12]
[1749931450788,7.01065265,143.59,143.57,35.17114126]
[1749931451189,6.9621,143.58,143.57,35.17114126]
[1749931451391,0.04885265,143.59,143.57,35.17114126]
[1749931452792,7.01065265,143.59,143.57,35.17114126]
[1749931453400,0.04885265,143.59,143.57,35.17114126]
[1749931453899,0.04885265,143.59,143.57,42.13344126]
[1749931454794,0.04885265,143.59,143.57,35.17114126]
[1749931455298,6.962,143.58,143.57,35.17114126]
[1749931455597,6.962,143.58,143.57,0.05114126]
[1749931459213,7.01075265,143.59,143.57,0.05114126]
[1749931460517,6.9621,143.58,143.57,0.05114126]
[1749931469218,6.9635,143.55,143.54,35.12]
[1749931469418,6.9635,143.55,143.51,12.9798267]
[1749931469419,4.72964561,143.56,143.51,35.14]
[1749931469724,4.72964561,143.54,143.51,35.14]
[1749931469918,4.72964561,143.52,143.48,35.14]
[1749931470119,4.72964561,143.5,143.48,35.14]
[1749931470317,4.72964561,143.5,143.45,35.14]
[1749931470318,4.77505458,143.5,143.45,35.14]
[1749931470519,4.77505458,143.5,143.46,0.04703756]
[1749931470924,6.9674,143.47,143.46,0.04703756]
[1749931471322,6.9693,143.43,143.42,35.14]
[1749931471724,4.72964561,143.46,143.42,35.14]
[1749931471926,6.9693,143.43,143.42,35.14]
[1749931472325,4.72964561,143.44,143.39,436.14]
[1749931472532,4.77375496,143.44,143.41,0.04510175]
[1749931472928,6.9702,143.42,143.41,0.04510175]
[1749931473631,11.69984561,143.42,143.41,0.04510175]
[1749931473837,4.72964561,143.42,143.36,35.14]
[1749931474331,6.9716,143.39,143.36,35.14]
[1749931474729,7.01775266,143.39,143.36,35.18645093]
[1749931475035,6.972,143.38,143.36,35.18645093]
[1749931476232,7.01755266,143.39,143.36,35.18645093]
[1749931477630,0.04615266,143.39,143.36,35.18645093]
[1749931478026,0.04615266,143.39,143.36,0.04645093]
[1749931478226,6.9721,143.38,143.36,0.04645093]
[1749931478435,0.04615266,143.39,143.36,0.04645093]
[1749931479242,6.9719,143.38,143.36,0.04645093]
[1749931480139,6.9722,143.37,143.36,0.04645093]
[1749931482741,6.96614561,143.38,143.33,35.16]
[1749931482945,4.72964561,143.36,143.33,35.16]
[1749931483242,4.72964561,143.36,143.3,42.3754]
[1749931483742,0.04834313,143.34,143.32,0.04561899]
[1749931483935,6.9744,143.33,143.32,0.04561899]
[1749931485037,7.02224313,143.34,143.32,0.04561899]
[1749931485242,0.04834313,143.34,143.32,0.04561899]
[1749931485443,0.04834313,143.34,143.32,7.02001899]
[1749931485631,0.04834313,143.34,143.32,0.04561899]
[1749931486143,0.04834313,143.34,143.32,7.02001899]
[1749931486937,0.04834313,143.34,143.32,0.04561899]
[1749931487543,6.9742,143.33,143.32,0.04561899]
[1749931488634,7.02224313,143.34,143.32,0.04561899]
[1749931490344,0.04834313,143.34,143.32,0.04561899]
[1749931493941,7.02214313,143.34,143.32,0.04561899]
[1749931495946,0.04834313,143.34,143.32,0.04561899]
[1749931497144,2.84223578,143.33,143.32,0.04561899]
[1749931497340,7.02244313,143.34,143.32,0.04561899]
[1749931497545,2.84193071,143.33,143.32,0.04561899]
[1749931497753,2.84194821,143.33,143.32,0.04561899]
[1749931498048,6.9742,143.33,143.32,0.04561899]
[1749931501143,0.04834313,143.34,143.32,0.04561899]
[1749931501348,0.04834313,143.34,143.32,4.79648688]
[1749931501656,0.04834313,143.34,143.32,0.04561899]
[1749931502556,0.04834313,143.34,143.32,7.02001899]
[1749931502756,40.16891989,143.4,143.32,4.79453888]
[1749931502957,40.16891989,143.4,143.32,4.74891989]
[1749931503150,6.9725,143.37,143.32,4.74891989]
[1749931503347,6.9725,143.37,143.33,2.2438]
[1749931503557,6.9725,143.37,143.34,35.42]
[1749931503756,6.9732,143.35,143.34,35.47107669]
[1749931506265,6.9732,143.35,143.34,0.05107669]
[1749931507159,6.9729,143.36,143.34,0.05107669]
[1749931507359,0.04553893,143.37,143.34,0.05107669]
[1749931507966,6.9727,143.36,143.34,0.05107669]
[1749931509062,6.9732,143.35,143.34,0.05107669]
[1749931509259,0.04553893,143.37,143.34,0.05107669]
[1749931509856,6.9731,143.36,143.34,0.05107669]
[1749931510059,0.04553893,143.37,143.34,0.05107669]
[1749931510362,6.9732,143.35,143.34,0.05107669]
[1749931514468,6.9729,143.36,143.34,0.05107669]
[1749931514667,0.04553893,143.37,143.34,0.05107669]
[1749931515171,6.9732,143.35,143.34,0.05107669]
[1749931515868,11.72497427,143.35,143.34,7.669e-05]
[1749931516162,4.75177427,143.35,143.28,2.3138]
[1749931516362,4.75567137,143.29,143.26,2.74915737]
[1749931516576,4.75744079,143.27,143.2,8.59945827]